fUSD/lending_fUSD_20240216
["ID","MTS","AMOUNT","RATE_DAILY","PERIOD"]
[314230818,1708104657858,-619.71,0.00049315,60]
[314230819,1708104657867,-500.0,0.00049315,60]
[314230820,1708104657876,-500.0,0.00049315,60]
[314230821,1708104657885,-500.0,0.00049315,60]
[314230822,1708104657894,-514.17967611,0.00049315,60]
[314230823,1708104657903,-500.0,0.00049315,60]
[314230824,1708104657912,-2994.72,0.00049315,60]
[314230825,1708104657953,-516.75272112,0.00049315,60]
[314230826,1708104657963,-500.0,0.00049315,60]
[314230827,1708104657972,-2925.7,0.00049315,60]
[314230828,1708104657981,-500.0,0.00049315,60]
[314230829,1708104657990,-500.0,0.00049315,60]
[314230830,1708104657999,-500.0,0.00049315,60]
[314230831,1708104658009,-500.0,0.00049315,30]
[314230832,1708104658018,-522.04,0.00049315,60]
[314230833,1708104658027,-500.0,0.00049315,60]
[314230834,1708104658035,-500.0,0.00049315,60]
[314230835,1708104658045,-500.0,0.00049315,60]
[314230836,1708104658054,-500.0,0.00049315,60]
[314230837,1708104658063,-500.0,0.00049315,60]
[314230838,1708104658072,-500.0,0.00049315,60]
[314230839,1708104658081,-517.07667296,0.00049315,60]
[314230840,1708104658090,-1400.58,0.00049315,60]
[314230841,1708104658099,-873.92,0.00049315,60]
[314230842,1708104658109,-500.0,0.00049315,60]
[314230843,1708104658118,-500.0,0.00049315,60]
[314230844,1708104658127,-500.0,0.00049315,60]
[314230845,1708104658285,-500.0,0.00049315,60]
[314230846,1708104658303,-548.93623883,0.00049315,60]
[314230847,1708104658312,-518.82294573,0.00049315,60]
[314230848,1708104658321,-1568.0,0.00049315,60]
[314230849,1708104658330,-151.0,0.00049315,14]
[314230850,1708104658340,-500.0,0.00049315,60]
[314230851,1708104658349,-500.0,0.00049315,60]
[314230852,1708104658358,-754.8,0.00049315,60]
[314230853,1708104658368,-500.0,0.00049315,60]
[314230854,1708104658377,-500.0,0.00049315,60]
[314230855,1708104658387,-500.0,0.00049315,60]
[314230856,1708104658396,-500.0,0.00049315,60]
[314230857,1708104658406,-151.0,0.00049315,14]
[314230858,1708104658416,-500.0,0.00049315,60]
[314230859,1708104658425,-500.0,0.00049315,60]
[314230860,1708104658435,-500.0,0.00049315,60]
[314230861,1708104658445,-500.0,0.00049315,60]
[314230862,1708104658455,-392.03862415,0.00049315,60]
[314230863,1708104658464,-15284.7,0.00049315,60]
[314230864,1708104658474,-1297.49,0.00049315,60]
[314230865,1708104658483,-151.0,0.00049315,14]
[314230866,1708104658492,-500.0,0.00049315,60]
[314230867,1708104658502,-500.0,0.00049315,2]
[314230868,1708104658511,-500.0,0.00049315,60]
[314230869,1708104658521,-500.0,0.00049315,60]
[314230870,1708104658530,-1799.768554,0.00049315,30]
[314230871,1708104658539,-500.0,0.00049315,60]
[314230872,1708104658548,-500.0,0.00049315,60]
[314230873,1708104658558,-1633.07,0.00049315,60]
[314230874,1708104658567,-500.0,0.00049315,60]
[314230875,1708104658576,-500.0,0.00049315,60]
[314230876,1708104658586,-582.7492603,0.00049315,60]
[314230877,1708104658596,-500.0,0.00049315,60]
[314230878,1708104658606,-500.0,0.00049315,60]
[314230879,1708104658615,-500.0,0.00049315,60]
[314230880,1708104658625,-6990.1,0.00049315,60]
[314230881,1708104658634,-250.0,0.00049315,60]
[314230882,1708104658643,-528.26564012,0.00049315,60]
[314230883,1708104658654,-500.79,0.00049315,60]
[314230884,1708104658663,-804.57,0.00049315,60]
[314230885,1708104658672,-639.42,0.00049315,60]
[314230886,1708104658682,-500.0,0.00049315,60]
[314230887,1708104658691,-500.0,0.00049315,60]
[314230888,1708104658700,-500.0,0.00049315,60]
[314230889,1708104658710,-500.0,0.00049315,60]
[314230890,1708104658719,-500.0,0.00049315,60]
[314230891,1708104658728,-4800.73,0.00049315,60]
[314230892,1708104658741,-1502.13,0.00049315,60]
[314230893,1708104658750,-500.0,0.00049315,60]
[314230894,1708104658759,-2427.37,0.00049315,60]
[314230895,1708104658769,-500.0,0.00049315,60]
[314230896,1708104658778,-500.0,0.00049315,60]
[314230897,1708104658789,-500.0,0.00049315,60]
[314230898,1708104658798,-515.58087335,0.00049315,60]
[314230899,1708104658807,-500.0,0.00049315,60]
[314230900,1708104658817,-6316.21,0.00049315,60]
[314230901,1708104658826,-540.86316594,0.00049315,60]
[314230902,1708104658835,-500.0,0.00049315,60]
[314230903,1708104658844,-3954.65,0.00049315,60]
[314230904,1708104658853,-500.0,0.00049315,60]
[314230905,1708104658863,-500.0,0.00049315,60]
[314230906,1708104658872,-493.89803531,0.00049315,60]
[314230907,1708104658882,-500.0,0.00049315,60]
[314230908,1708104658892,-500.0,0.00049315,60]
[314230909,1708104658901,-500.0,0.00049315,60]
[314230910,1708104658910,-2091.44,0.00049315,60]
[314230911,1708104658919,-513.70581947,0.00049315,60]
[314230912,1708104658928,-500.0,0.00049315,60]
[314230913,1708104658938,-500.0,0.00049315,60]
[314230914,1708104658947,-1150.23,0.00049315,60]
[314230915,1708104658956,-500.0,0.00049315,60]
[314230916,1708104658965,-491.01828544,0.00049315,60]
[314230917,1708104658974,-500.0,0.00049315,60]
[314230918,1708104658984,-500.0,0.00049315,60]
[314230919,1708104658994,-500.0,0.00049315,60]
[314230920,1708104659003,-500.0,0.00049315,60]
[314230921,1708104659013,-500.0,0.00049315,60]
[314230922,1708104659022,-500.0,0.00049315,60]
[314230923,1708104659031,-665.63,0.00049315,60]
[314230924,1708104659041,-500.0,0.00049315,60]
[314230925,1708104659050,-500.0,0.00049315,60]
[314230926,1708104659059,-500.0,0.00049315,60]
[314230927,1708104659069,-500.0,0.00049315,60]
[314230928,1708104659078,-500.0,0.00049315,60]
[314230929,1708104659087,-500.0,0.00049315,60]
[314230930,1708104659097,-586.95,0.00049315,60]
[314230931,1708104659107,-504.84798508,0.00049315,60]
[314230932,1708104659117,-500.0,0.00049315,60]
[314230933,1708104659127,-1143.28,0.00049315,60]
[314230934,1708104659136,-500.0,0.00049315,60]
[314230935,1708104659146,-928.06,0.00049315,60]
[314230936,1708104659155,-5818.47,0.00049315,60]
[314230937,1708104659164,-500.0,0.00049315,60]
[314230938,1708104659174,-10000.0,0.00049315,60]
[314230939,1708104659183,-515.69,0.00049315,60]
[314230940,1708104659193,-594.35,0.00049315,60]
[314230941,1708104659202,-500.0,0.00049315,60]
[314230942,1708104659212,-752.48,0.00049315,60]
[314230943,1708104659221,-500.0,0.00049315,60]
[314230944,1708104659231,-500.0,0.00049315,60]
[314230945,1708104659240,-500.0,0.00049315,60]
[314230946,1708104659250,-664.82,0.00049315,60]
[314230947,1708104659259,-500.0,0.00049315,60]
[314230948,1708104659268,-500.0,0.00049315,60]
[314230949,1708104659278,-500.0,0.00049315,60]
[314230950,1708104659287,-151.0,0.00049315,14]
[314230951,1708104659296,-2585.68,0.00049315,60]
[314230952,1708104659306,-875.45,0.00049315,60]
[314230953,1708104659315,-500.0,0.00049315,60]
[314230954,1708104659324,-14931.24,0.00049315,60]
[314230955,1708104659333,-500.0,0.00049315,60]
[314230956,1708104659342,-700.9,0.00049315,60]
[314230957,1708104659351,-500.0,0.00049315,60]
[314230958,1708104659361,-500.0,0.00049315,60]
[314230959,1708104659370,-500.0,0.00049315,60]
[314230960,1708104659379,-500.0,0.00049315,60]
[314230961,1708104659389,-10361.64,0.00049315,60]
[314230962,1708104659398,-500.0,0.00049315,60]
[314230963,1708104659407,-2784.1,0.00049315,60]
[314230964,1708104659416,-500.0,0.00049315,60]
[314230965,1708104659426,-500.0,0.00049315,60]
[314230966,1708104659435,-500.0,0.00049315,60]
[314230967,1708104659444,-500.0,0.00049315,60]
[314230968,1708104659453,-500.0,0.00049315,60]
[314230969,1708104659463,-1157.28,0.00049315,60]
[314230970,1708104659473,-565.15455576,0.00049315,60]
[314230971,1708104659481,-500.0,0.00049315,60]
[314230972,1708104659491,-500.0,0.00049315,60]
[314230973,1708104659500,-500.0,0.00049315,60]
[314230974,1708104659509,-540.82,0.00049315,60]
[314230975,1708104659518,-622.57,0.00049315,60]
[314230976,1708104659528,-398.84798794,0.00049315,60]
[314230977,1708104659537,-9044.76,0.00049315,60]
[314230978,1708104659547,-500.0,0.00049315,60]
[314230979,1708104659556,-918.82,0.00049315,60]
[314230980,1708104659566,-1294.67,0.00049315,60]
[314230981,1708104659575,-151.0,0.00049315,14]
[314230982,1708104659585,-500.0,0.00049315,60]
[314230983,1708104659595,-500.0,0.00049315,60]
[314230984,1708104659605,-216.71621259,0.00049315,60]
[314230985,1708104659614,-1444.04,0.00049315,60]
[314230986,1708104659623,-500.0,0.00049315,60]
[314230987,1708104659633,-1853.43,0.00049315,60]
[314230988,1708104659642,-151.0,0.00049315,14]
[314230989,1708104659652,-500.0,0.00049315,60]
[314230990,1708104659662,-2471.66,0.00049315,60]
[314230991,1708104659671,-500.0,0.00049315,60]
[314230992,1708104659681,-500.0,0.00049315,60]
[314230993,1708104659691,-500.0,0.00049315,60]
[314230994,1708104659700,-500.0,0.00049315,60]
[314230995,1708104659710,-500.0,0.00049315,60]
[314230996,1708104659719,-224.44872942,0.00049315,60]
[314230997,1708104659729,-963.54,0.00049315,60]
[314230998,1708104659743,-500.0,0.00049315,60]
[314230999,1708104659752,-500.0,0.00049315,60]
[314231000,1708104659762,-500.0,0.00049315,60]
[314231001,1708104659771,-947.33,0.00049315,60]
[314231002,1708104659780,-500.0,0.00049315,60]
[314231003,1708104659789,-500.0,0.00049315,60]
[314231004,1708104659799,-500.0,0.00049315,60]
[314231005,1708104659810,-277.39056651,0.00049315,60]
[314231006,1708104659820,-1068.44,0.00049315,60]
[314231007,1708104659829,-500.0,0.00049315,60]
[314231008,1708104659839,-500.0,0.00049315,60]
[314231009,1708104659848,-513.53314068,0.00049315,60]
[314231010,1708104659858,-500.0,0.00049315,60]
[314231011,1708104659868,-3996.45,0.00049315,60]
[314231012,1708104659876,-2522.63,0.00049315,60]
[314231013,1708104659886,-500.0,0.00049315,60]
[314231014,1708104659895,-711.26,0.00049315,60]
[314231015,1708104659905,-1143.92,0.00049315,60]
[314231016,1708104659914,-500.0,0.00049315,60]
[314231017,1708104659923,-505.05,0.00049315,60]
[314231018,1708104659934,-1709.74,0.00049315,60]
[314231019,1708104659943,-3964.42,0.00049315,60]
[314231020,1708104659953,-1641.86,0.00049315,60]
[314231021,1708104659963,-592.08,0.00049315,60]
[314231022,1708104659972,-2080.43,0.00049315,60]
[314231023,1708104659982,-500.0,0.00049315,60]
[314231024,1708104659991,-1039.84,0.00049315,60]
[314231025,1708104660000,-328.99661465,0.00049315,60]
[314231026,1708104660010,-151.0,0.00049315,7]
[314231027,1708104660019,-500.0,0.00049315,60]
[314231028,1708104660029,-1398.41,0.00049315,60]
[314231029,1708104660038,-2840.51,0.00049315,60]
[314231030,1708104660047,-440.66636834,0.00049315,60]
[314231031,1708104660057,-500.0,0.00049315,60]
[314231032,1708104660067,-500.0,0.00049315,60]
[314231033,1708104660076,-500.0,0.00049315,60]
[314231034,1708104660085,-500.0,0.00049315,60]
[314231035,1708104660094,-500.0,0.00049315,60]
[314231038,1708104660158,-530.9949353,0.00049315,60]
[314231039,1708104660167,-8156.96,0.00049315,60]
[314231041,1708104660176,-685.07,0.00049315,60]
[314231042,1708104660186,-500.0,0.00049315,60]
[314231043,1708104660195,-590.47,0.00049315,60]
[314231044,1708104660204,-762.46,0.00049315,60]
[314231045,1708104660213,-1228.34,0.00049315,60]
[314231046,1708104660222,-500.0,0.00049315,60]
[314231047,1708104660231,-500.0,0.00049315,60]
[314231048,1708104660240,-500.0,0.00049315,60]
[314231049,1708104660250,-500.0,0.00049315,60]
[314231050,1708104660259,-500.0,0.00049315,60]
[314231051,1708104660268,-729.61,0.00049315,60]
[314231052,1708104660277,-500.0,0.00049315,60]
[314231053,1708104660286,-500.0,0.00049315,60]
[314231054,1708104660295,-6977.02,0.00049315,14]
[314231055,1708104660304,-500.0,0.00049315,60]
[314231056,1708104660313,-505.8631266,0.00049315,60]
[314231057,1708104660322,-942.28,0.00049315,60]
[314231058,1708104660331,-500.0,0.00049315,60]
[314231059,1708104660340,-500.0,0.00049315,60]
[314231060,1708104660349,-500.0,0.00049315,60]
[314231061,1708104660358,-3652.37,0.00049315,60]
[314231062,1708104660367,-500.0,0.00049315,60]
[314231063,1708104660377,-500.0,0.00049315,60]
[314231064,1708104660386,-239.13646399,0.00049315,60]
[314231065,1708104660395,-758.16,0.00049315,60]
[314231066,1708104660405,-500.0,0.00049315,60]
[314231067,1708104660414,-1208.07,0.00049315,60]
[314231068,1708104660423,-500.0,0.00049315,60]
[314231069,1708104660432,-500.0,0.00049315,60]
[314231070,1708104660441,-1122.32,0.00049315,60]
[314231071,1708104660451,-3186.88,0.00049315,60]
[314231072,1708104660460,-985.63,0.00049315,60]
[314231073,1708104660470,-500.0,0.00049315,60]
[314231074,1708104660479,-500.0,0.00049315,60]
[314231075,1708104660488,-2758.88,0.00049315,60]
[314231076,1708104660497,-500.0,0.00049315,60]
[314231077,1708104660506,-500.0,0.00049315,60]
[314231078,1708104660515,-500.0,0.00049315,60]
[314231079,1708104660525,-500.0,0.00049315,14]
[314231080,1708104660534,-500.0,0.00049315,60]
[314231081,1708104660543,-500.0,0.00049315,60]
[314231082,1708104660552,-2058.8,0.00049315,60]
[314231083,1708104660561,-500.0,0.00049315,60]
[314231084,1708104660571,-500.0,0.00049315,60]
[314231085,1708104660580,-500.0,0.00049315,2]
[314231086,1708104660590,-500.0,0.00049315,60]
[314231087,1708104660599,-500.0,0.00049315,60]
[314231088,1708104660609,-500.0,0.00049315,60]
[314231089,1708104660619,-719.99,0.00049315,60]
[314231090,1708104660628,-7688.18,0.00049315,60]
[314231091,1708104660638,-500.0,0.00049315,60]
[314231092,1708104660647,-500.0,0.00049315,60]
[314231093,1708104660656,-500.0,0.00049315,60]
[314231094,1708104660666,-500.0,0.00049315,60]
[314231095,1708104660675,-500.0,0.00049315,60]
[314231096,1708104660684,-1750.5,0.00049315,60]
[314231097,1708104660694,-500.0,0.00049315,60]
[314231098,1708104660703,-3607.52,0.00049315,60]
[314231099,1708104660712,-500.0,0.00049315,60]
[314231100,1708104660721,-151.0,0.00049315,14]
[314231101,1708104660731,-500.0,0.00049315,60]
[314231102,1708104660744,-500.0,0.00049315,60]
[314231103,1708104660753,-1245.22,0.00049315,60]
[314231104,1708104660762,-500.0,0.00049315,60]
[314231105,1708104660772,-514.78,0.00049315,60]
[314231106,1708104660781,-500.0,0.00049315,60]
[314231107,1708104660790,-2861.59,0.00049315,60]
[314231108,1708104660799,-199.60042151,0.00049315,60]
[314231109,1708104660808,-736.24,0.00049315,60]
[314231110,1708104660819,-500.0,0.00049315,60]
[314231111,1708104660828,-1000.0,0.00049315,2]
[314231112,1708104660838,-587.12,0.00049315,60]
[314231113,1708104660847,-922.04,0.00049315,60]
[314231114,1708104660858,-594.95,0.00049315,60]
[314231115,1708104660867,-1992.57,0.00049315,60]
[314231116,1708104660876,-500.0,0.00049315,60]
[314231117,1708104660885,-500.0,0.00049315,60]
[314231118,1708104660895,-551.81,0.00049315,60]
[314231119,1708104660904,-500.0,0.00049315,60]
[314231120,1708104660914,-1151.86,0.00049315,60]
[314231121,1708104660923,-500.0,0.00049315,60]
[314231122,1708104660933,-788.66,0.00049315,60]
[314231123,1708104660942,-719.82,0.00049315,60]
[314231124,1708104660951,-500.0,0.00049315,60]
[314231125,1708104660961,-500.0,0.00049315,60]
[314231126,1708104660970,-500.0,0.00049315,60]
[314231127,1708104660979,-500.0,0.00049315,60]
[314231128,1708104660988,-569.85,0.00049315,60]
[314231129,1708104660997,-666.37,0.00049315,60]
[314231130,1708104661006,-2442.82,0.00049315,60]
[314231131,1708104661015,-704.08,0.00049315,60]
[314231132,1708104661025,-502.33,0.00049315,60]
[314231133,1708104661034,-500.0,0.00049315,60]
[314231134,1708104661043,-1232.95,0.00049315,60]
[314231135,1708104661052,-1245.23,0.00049315,60]
[314231136,1708104661062,-500.0,0.00049315,30]
[314231137,1708104661071,-2413.25,0.00049315,60]
[314231138,1708104661080,-1366.93,0.00049315,60]
[314231139,1708104661089,-500.0,0.00049315,60]
[314231140,1708104661098,-500.0,0.00049315,60]
[314231141,1708104661108,-604.08,0.00049315,60]
[314231142,1708104661117,-500.0,0.00049315,7]
[314231143,1708104661126,-575.01374045,0.00049315,60]
[314231144,1708104661135,-2108.34,0.00049315,60]
[314231145,1708104661145,-500.0,0.00049315,60]
[314231146,1708104661154,-500.0,0.00049315,60]
[314231147,1708104661164,-798.93,0.00049315,60]
[314231148,1708104661173,-500.0,0.00049315,60]
[314231149,1708104661183,-500.0,0.00049315,60]
[314231150,1708104661193,-500.0,0.00049315,2]
[314231151,1708104661202,-578.67,0.00049315,60]
[314231152,1708104661212,-525.58,0.00049315,60]
[314231153,1708104661221,-500.0,0.00049315,60]
[314231154,1708104661231,-500.0,0.00049315,60]
[314231155,1708104661241,-664.68,0.00049315,60]
[314231156,1708104661251,-500.0,0.00049315,60]
[314231157,1708104661261,-500.09719459,0.00049315,2]
[314231158,1708104661271,-1013.32,0.00049315,60]
[314231159,1708104661280,-500.0,0.00049315,60]
[314231160,1708104661291,-500.0,0.00049315,60]
[314231161,1708104661300,-886.79,0.00049315,60]
[314231162,1708104661310,-343.48256172,0.00049315,2]
[314231163,1708104661320,-500.0,0.00049315,60]
[314231164,1708104661330,-500.0,0.00049315,60]
[314231165,1708104661340,-500.0,0.00049315,60]
[314231166,1708104661350,-500.0,0.00049315,60]
[314231167,1708104661360,-629.13,0.00049315,60]
[314231168,1708104661370,-500.0,0.00049315,60]
[314231169,1708104661379,-500.0,0.00049315,60]
[314231170,1708104661389,-446.27349746,0.00049315,60]
[314231171,1708104661399,-603.95,0.00049315,60]
[314231172,1708104661410,-532.72370155,0.00049315,60]
[314231173,1708104661419,-500.0,0.00049315,60]
[314231174,1708104661429,-500.0,0.00049315,60]
[314231175,1708104661439,-522.1425375,0.00049315,60]
[314231176,1708104661449,-500.0,0.00049315,60]
[314231177,1708104661459,-500.0,0.00049315,60]
[314231178,1708104661469,-509.30089643,0.00049315,60]
[314231179,1708104661479,-500.0,0.00049315,60]
[314231180,1708104661489,-1282.02,0.00049315,60]
[314231181,1708104661499,-3751.22,0.00049315,60]
[314231182,1708104661508,-556.06867048,0.00049315,2]
[314231183,1708104661518,-500.0,0.00049315,60]
[314231184,1708104661528,-787.14,0.00049315,60]
[314231185,1708104661537,-500.0,0.00049315,60]
[314231186,1708104661547,-628.45,0.00049315,60]
[314231187,1708104661557,-1086.22,0.00049315,60]
[314231188,1708104661567,-1184.98,0.00049315,60]
[314231189,1708104661577,-500.0,0.00049315,60]
[314231190,1708104661587,-542.16,0.00049315,60]
[314231191,1708104661597,-500.0,0.00049315,60]
[314231192,1708104661607,-500.0,0.00049315,60]
[314231193,1708104661617,-536.16,0.00049315,60]
[314231194,1708104661627,-500.0,0.00049315,14]
[314231195,1708104661637,-2619.67596567,0.00049342,25]
[314231196,1708104661646,-565.53227197,0.00049363,60]
[314231197,1708104661657,-221.021737,0.00049398,39]
[314231198,1708104661666,-391.01,0.000494,7]
[314231199,1708104661676,-970.12,0.0004941,2]
[314231200,1708104661685,-150.0,0.00049419,60]
[314231201,1708104661695,-507.7576959,0.0004942,60]
[314231202,1708104661705,-530.09448258,0.00049489,2]
[314231203,1708104661715,-151.021737,0.00049498,38]
[314231204,1708104661726,-22557.01465687,0.000495,5]
[314231205,1708104661739,-3000.0,0.0004954,47]
[314231206,1708104661748,-549.72,0.00049564,120]
[314231207,1708104661758,-150.0,0.00049578,60]
[314231208,1708104661767,-151.0,0.00049579,120]
[314231209,1708104661777,-246.614819,0.00049579,120]
[314231210,1708104661787,-460.02564019,0.00049586,2]
[314231211,1708104661797,-500.0,0.00049589,60]
[314231212,1708104661808,-500.0,0.00049589,60]
[314231213,1708104661818,-500.0,0.00049589,60]
[314231214,1708104661827,-500.0,0.00049589,60]
[314231215,1708104661837,-500.0,0.00049589,60]
[314231216,1708104661847,-500.0,0.00049589,60]
[314231217,1708104661857,-600.0,0.00049589,60]
[314231218,1708104661867,-515.28,0.00049589,60]
[314231219,1708104661877,-503.86,0.00049589,60]
[314231220,1708104661886,-500.0,0.00049589,60]
[314231221,1708104661896,-500.0,0.00049589,60]
[314231222,1708104661906,-534.57645041,0.00049589,60]
[314231223,1708104661916,-500.0,0.00049589,60]
[314231224,1708104661925,-545.80008954,0.00049589,60]
[314231225,1708104661935,-542.97664353,0.00049589,60]
[314231226,1708104661945,-500.0,0.00049589,60]
[314231227,1708104661954,-500.0,0.00049589,60]
[314231228,1708104661963,-500.0,0.00049589,60]
[314231229,1708104661973,-500.0,0.00049589,60]
[314231230,1708104661983,-500.0,0.00049589,60]
[314231231,1708104661992,-500.0,0.00049589,60]
[314231232,1708104662002,-500.0,0.00049589,60]
[314231233,1708104662011,-151.0,0.00049589,120]
[314231234,1708104662021,-500.0,0.00049589,60]
[314231235,1708104662031,-500.0,0.00049589,60]
[314231236,1708104662041,-500.0,0.00049589,60]
[314231237,1708104662051,-500.0,0.00049589,60]
[314231238,1708104662061,-500.0,0.00049589,60]
[314231239,1708104662071,-500.0,0.00049589,60]
[314231240,1708104662081,-630.3093914,0.00049589,60]
[314231241,1708104662091,-500.0,0.00049589,60]
[314231242,1708104662101,-500.0,0.00049589,60]
[314231243,1708104662112,-500.0,0.00049589,60]
[314231244,1708104662122,-500.0,0.00049589,60]
[314231245,1708104662131,-353.39750928,0.00049589,60]
[314231246,1708104662141,-500.0,0.00049589,60]
[314231247,1708104662152,-500.0,0.00049589,60]
[314231248,1708104662162,-500.0,0.00049589,60]
[314231249,1708104662171,-500.0,0.00049589,60]
[314231250,1708104662181,-513.16278751,0.00049589,60]
[314231251,1708104662190,-500.0,0.00049589,60]
[314231252,1708104662200,-500.0,0.00049589,60]
[314231253,1708104662209,-500.0,0.00049589,60]
[314231254,1708104662219,-332.55495754,0.00049589,60]
[314231255,1708104662228,-500.0,0.00049589,60]
[314231256,1708104662238,-500.0,0.00049589,60]
[314231257,1708104662248,-500.0,0.00049589,60]
[314231258,1708104662258,-500.0,0.00049589,60]
[314231259,1708104662267,-500.0,0.00049589,60]
[314231260,1708104662277,-500.0,0.00049589,60]
[314231261,1708104662286,-197.00737746,0.00049589,60]
[314231262,1708104662296,-500.0,0.00049589,60]
[314231263,1708104662306,-512.97476097,0.00049589,60]
[314231264,1708104662315,-500.0,0.00049589,60]
[314231265,1708104662325,-500.0,0.00049589,60]
[314231266,1708104662335,-500.0,0.00049589,60]
[314231267,1708104662345,-500.0,0.00049589,60]
[314231268,1708104662355,-500.0,0.00049589,60]
[314231269,1708104662369,-500.0,0.00049589,60]
[314231270,1708104662379,-500.0,0.00049589,60]
[314231271,1708104662389,-500.0,0.00049589,60]
[314231272,1708104662399,-500.0,0.00049589,60]
[314231273,1708104662409,-500.0,0.00049589,60]
[314231274,1708104662418,-500.0,0.00049589,60]
[314231275,1708104662427,-500.0,0.00049589,60]
[314231276,1708104662437,-500.0,0.00049589,60]
[314231277,1708104662448,-500.0,0.00049589,60]
[314231278,1708104662457,-500.0,0.00049589,60]
[314231279,1708104662467,-500.0,0.00049589,60]
[314231280,1708104662477,-500.0,0.00049589,60]
[314231281,1708104662486,-500.0,0.00049589,60]
[314231282,1708104662496,-248.1895992,0.00049589,60]
[314231283,1708104662505,-500.0,0.00049589,60]
[314231284,1708104662515,-503.62071379,0.00049589,60]
[314231285,1708104662525,-511.05547132,0.00049589,60]
[314231286,1708104662535,-528.11159975,0.00049589,60]
[314231287,1708104662545,-500.0,0.00049589,60]
[314231288,1708104662555,-500.0,0.00049589,60]
[314231289,1708104662564,-500.0,0.00049589,60]
[314231290,1708104662574,-500.0,0.00049589,60]
[314231291,1708104662584,-500.0,0.00049589,60]
[314231292,1708104662595,-515.63693456,0.00049589,60]
[314231293,1708104662605,-500.0,0.00049589,60]
[314231294,1708104662617,-500.0,0.00049589,60]
[314231295,1708104662627,-500.0,0.00049589,60]
[314231296,1708104662637,-235.07863536,0.00049589,60]
[314231297,1708104662647,-510.59945602,0.00049589,60]
[314231298,1708104662658,-500.0,0.00049589,60]
[314231299,1708104662668,-514.68417405,0.00049589,60]
[314231300,1708104662678,-500.0,0.00049589,60]
[314231301,1708104662687,-521.85047775,0.00049589,60]
[314231302,1708104662697,-500.0,0.00049589,60]
[314231303,1708104662706,-500.0,0.00049589,60]
[314231304,1708104662716,-500.0,0.00049589,60]
[314231305,1708104662728,-500.0,0.00049589,60]
[314231306,1708104662738,-489.52034171,0.00049589,60]
[314231307,1708104662749,-500.0,0.00049589,60]
[314231308,1708104662759,-500.0,0.00049589,60]
[314231309,1708104662768,-500.0,0.00049589,60]
[314231310,1708104662778,-517.83,0.00049589,60]
[314231311,1708104662789,-500.0,0.00049589,60]
[314231312,1708104662798,-500.0,0.00049589,60]
[314231313,1708104662808,-500.0,0.00049589,60]
[314231314,1708104662819,-500.0,0.00049589,60]
[314231315,1708104662828,-514.07508358,0.00049589,60]
[314231316,1708104662838,-500.0,0.00049589,60]
[314231317,1708104662847,-500.0,0.00049589,60]
[314231318,1708104662857,-500.0,0.00049589,60]
[314231319,1708104662868,-500.0,0.00049589,60]
[314231320,1708104663016,-500.0,0.00049589,60]